[Event "3rd Sunway Formentera-A 2024"]
[Site "Formentera"]
[Date "2024.04.16"]
[Round "7.12"]
[White "Tsatsalashvili, Keti"]
[Black "Bauer, Thomas"]
[Result "1-0"]
[ECO "A49"]
[WhiteElo "2315"]
[BlackElo "2192"]
[Annotator "TA"]
[PlyCount "101"]
[EventDate "2024.04.03"]
[EventType "swiss"]
[EventCountry "ESP"]
[SourceTitle "playchess.com"]
[Source "ChessBase"]
[SourceQuality "1"]
[TimeControl "40/5400+30:1800+30"]

{[%evp 11,100,14,30,31,27,13,25,23,46,36,52,53,72,26,56,23,74,78,75,85,79,78,74,85,82,86,81,87,88,87,88,79,136,122,164,148,308,218,248,232,366,372,427,381,374,261,333,327,512,497,524,481,572,561,581,570,641,564,691,662,999,823,800,817,1150,1147,1357,1330,1564,1478,1549,1557,1587,1557,1867,2094,2286,2233,29990,1514,29984,29985,29985,29986,29987,29988,29988,29989,29998,29999,29999]} 1. d4 {[%emt 0:00:04]} d6 {[%emt 0:00:02]} 2. Nf3 {[%emt 0:00:22]} g6 {[%emt 0:00:08]} 3. g3 {[%emt 0:01:25]} Nf6 {[%emt 0:00:22]} 4. Bg2 {[%emt 0:00:13]} Bg7 {[%emt 0:00:07]} 5. O-O {[%emt 0:00:07]} O-O {[%emt 0:00:04]} 6. Re1 {[%emt 0:01:44]} a5 {[%emt 0:07:37] A49: 1 d4 Nf6 2 Nf3 g6 3 g3: Anti-King's Indian systems.} 7. e4 {[%emt 0:06:13]} c6 {[%emt 0:02:16]} 8. e5 $146 {[%emt 0:04:41]} ({Predecessor:} 8. Nc3 Na6 9. h3 Nd7 10. e5 dxe5 11. dxe5 Ndc5 12. Qe2 b5 13. Rd1 Qc7 14. a3 {1-0 Ghosh,D (2441)-Srihari,L (2184) IND-ch Rapid 2024 (3)}) 8... dxe5 {[%emt 0:04:20]} 9. Nxe5 {[%emt 0:01:12]} Na6 {[%emt 0:01:47]} 10. c3 {[%emt 0:06:41]} Be6 {[%emt 0:00:39]} 11. Nd2 {[%emt 0:01:52]} Nc7 {[%emt 0:08:05]} 12. Ndc4 {[%emt 0:02:08]} (12. Nb3 $16) 12... Nce8 {[%emt 0:05:51]} 13. Ne3 {[%emt 0:09:44]} a4 {[%emt 0:05:24]} (13... Nd6 $11 {keeps the balance.}) 14. Nd3 $16 {[%emt 0:01:47]} Bd5 {[%emt 0:14:14]} 15. Nxd5 {[%emt 0:01:53]} cxd5 {[%emt 0:00:03]} 16. Nc5 {[%emt 0:00:53]} a3 {[%emt 0:05:24]} 17. Nxb7 {[%emt 0:07:16]} axb2 {[%emt 0:05:42]} 18. Bxb2 {[%emt 0:00:37]} (18. Nxd8 $2 bxa1=Q (18... bxa1=R 19. Nc6 $15) 19. Nc6 e6 $19 (19... Rxa2 $2 20. Nxe7+ Kh8 21. Nxd5 $19)) 18... Qc7 {[%emt 0:00:26] [#]} 19. Nc5 $1 {[%emt 0:00:39]} Nd6 {[%emt 0:00:01]} 20. a4 {[%emt 0:04:07]} e6 {[%emt 0:00:59]} 21. Ba3 {[%emt 0:01:19]} h5 {[%emt 0:01:28]} (21... Rfc8 $142) 22. Bb4 $16 {[%emt 0:01:59]} h4 {[%emt 0:03:05]} 23. Qd2 {[%emt 0:01:42]} (23. gxh4 Nf5 $16) 23... Nh5 $2 {[%emt 0:02:30]} (23... Nf5 $16 {was called for.} 24. a5 Rfb8) 24. Bf1 {[%emt 0:13:40]} (24. gxh4 Rfb8 $16) 24... Kh7 {[%emt 0:01:46]} 25. Bd3 {[%emt 0:00:36]} (25. gxh4 $6 Rh8 $16) 25... Rh8 {[%emt 0:03:42]} (25... hxg3 $142 26. hxg3 Rfe8) 26. Qg5 $18 {[%emt 0:15:21]} ({Not} 26. gxh4 Nf5 $16) 26... hxg3 {[%emt 0:01:38]} 27. hxg3 {[%emt 0:00:57]} Kg8 {[%emt 0:02:49]} 28. Kg2 {[%emt 0:00:46]} Re8 {[%emt 0:04:47]} 29. a5 {[%emt 0:04:04]} Bf6 {[%emt 0:03:01]} (29... Bh6 $142 30. Qe5 Bg7) 30. Qg4 $18 {[%emt 0:00:11]} Ng7 {[%emt 0:04:40]} 31. Qf4 {[%emt 0:02:19]} Nh5 {[%emt 0:00:43]} 32. Qf3 {[%emt 0:00:13]} Kg7 {[%emt 0:01:56]} 33. a6 {[%emt 0:01:28]} (33. g4 Nf5 34. gxf5 Nf4+ 35. Kg1 Ra8 $16) 33... Nc8 {[%emt 0:06:42]} 34. Bb5 {[%emt 0:01:53]} Reg8 {[%emt 0:01:27]} 35. Bd7 {[%emt 0:04:02]} Kh7 {[%emt 0:02:12]} 36. Rh1 {[%emt 0:00:43]} Kg7 {[%emt 0:02:00]} 37. Bxe6 {[%emt 0:00:19]} Nd6 {[%emt 0:00:22]} 38. Bxd5 {[%emt 0:00:32]} Qa7 {[%emt 0:00:37]} 39. Nb7 {[%emt 0:01:11]} Nb5 {[%emt 0:00:21]} 40. Bc5 {[%emt 0:00:00]} Qb8 {[%emt 0:00:00]} 41. a7 {[%emt 0:03:15]} Qc7 {[%emt 0:03:51]} 42. Rab1 {[%emt 0:02:35]} Nf4+ {[%emt 0:01:59]} 43. gxf4 {[%emt 0:01:57]} Rxh1 {[%emt 0:02:32]} 44. Rxh1 {[%emt 0:00:52]} Be7 {[%emt 0:02:41]} 45. Rb1 {[%emt 0:02:28]} (45. Qh3 $142 Bxc5 46. Qh7+ (46. Nxc5 Qxa7 47. Nd7 Qxd7 48. Qxd7 Rf8 49. Qe7 Nd6 50. Qe5+ f6 51. Qxd6 Rf7 52. Qe6 Rf8 53. Qe7+ Rf7 54. Qxf7#) 46... Kf6 47. Nxc5 (47. Qxg8 Qxf4 48. Qxf7+ Kg5 49. Qxf4+ Kxf4 50. a8=Q Kf5) 47... Nxc3 48. Qxg8 Nxd5 49. Qh8+ (49. a8=B Nxf4+ 50. Kf3 Nd3 51. Nxd3 Kg5 52. Rg1+ Kf5 53. Re1 Kf6 54. Qh8+ Kg5) 49... Ke7 50. a8=Q (50. a8=B Nxf4+ 51. Kf3 Nd3 $18) (50. Re1+ Ne3+ 51. Rxe3+ Kd6 52. Qe5+ Kc6 53. a8=Q+ Kb5 54. Rb3+ Kc4 55. Qed5#)) 45... Na3 {[%emt 0:08:00]} 46. Bxa3 {[%emt 0:00:56]} Bxa3 {[%emt 0:00:11]} 47. Nc5 {[%emt 0:00:16]} Bxc5 {[%emt 0:01:43]} 48. dxc5 {[%emt 0:00:33]} Qxa7 {[%emt 0:00:12]} 49. Rb7 {[%emt 0:00:09]} Qxc5 {[%emt 0:00:18]} 50. Rxf7+ {[%emt 0:00:08]} Kh6 {[%emt 0:00:07]} 51. Qh3# {[%emt 0:00:10]} 1-0

[Event "3rd Sunway Formentera-A 2024"]
[Site "Formentera"]
[Date "2024.04.16"]
[Round "7.13"]
[White "Vargas Drechsler, Carlos"]
[Black "Cremonini, Stefano"]
[Result "1-0"]
[ECO "D15"]
[WhiteElo "1878"]
[BlackElo "1747"]
[Annotator "NA RC"]
[PlyCount "85"]
[EventDate "2024.04.03"]
[EventType "swiss"]
[EventCountry "ESP"]
[SourceTitle "playchess.com"]
[Source "ChessBase"]
[SourceQuality "1"]
[TimeControl "40/5400+30:1800+30"]

1. Nf3 {[%emt 0:00:11]} d5 {[%emt 0:00:06]} 2. c4 {[%emt 0:01:31]} c6 {[%emt 0:00:07]} 3. d4 {[%emt 0:00:35]} Nf6 {[%emt 0:00:09]} 4. Nc3 {[%emt 0:00:11]} a6 {[%emt 0:00:15]} 5. e3 {[%emt 0:01:04]} Bg4 {[%emt 0:00:35]} 6. h3 {[%emt 0:04:44]} Bh5 {[%emt 0:00:52]} 7. Qb3 {[%emt 0:03:20]} Ra7 {[%emt 0:04:57]} 8. cxd5 {[%emt 0:04:23]} cxd5 {[%emt 0:01:39]} 9. Qa4+ {[%emt 0:01:39]} Nc6 {[%emt 0:11:32]} 10. Ne5 {[%emt 0:06:28]} Qa5 {[%emt 0:09:54]} 11. Nxc6 {[%emt 0:02:23]} Qxa4 {[%emt 0:00:15]} 12. Nxa4 {[%emt 0:00:14]} bxc6 {[%emt 0:00:06]} 13. Bd3 {[%emt 0:03:34]} e6 {[%emt 0:02:12]} 14. Bd2 {[%emt 0:00:34]} Bg6 {[%emt 0:01:56]} 15. Bxg6 {[%emt 0:01:28]} hxg6 {[%emt 0:00:08]} 16. Rc1 {[%emt 0:00:46]} Kd7 {[%emt 0:10:47]} 17. Nc5+ {[%emt 0:06:48]} Bxc5 {[%emt 0:00:22]} 18. Rxc5 {[%emt 0:00:14]} Rb8 {[%emt 0:01:31]} 19. Rc2 {[%emt 0:01:00]} Rab7 {[%emt 0:03:03]} 20. b3 {[%emt 0:00:36]} Rb5 {[%emt 0:05:57]} 21. f3 {[%emt 0:03:13]} Ne8 {[%emt 0:10:14]} 22. Ke2 {[%emt 0:00:43]} Nd6 {[%emt 0:03:50]} 23. Rhc1 {[%emt 0:01:00]} Rc8 {[%emt 0:00:59]} 24. Kd3 {[%emt 0:01:12]} f5 {[%emt 0:03:48]} 25. Rc5 {[%emt 0:01:28]} Rxc5 {[%emt 0:04:23]} 26. dxc5 {[%emt 0:09:00]} Ne8 {[%emt 0:03:37]} 27. b4 {[%emt 0:00:48]} Rb8 {[%emt 0:00:43]} 28. a3 {[%emt 0:06:15]} Nc7 {[%emt 0:07:46]} 29. Kc3 {[%emt 0:02:07]} a5 {[%emt 0:03:16]} 30. Kb3 {[%emt 0:02:05]} axb4 {[%emt 0:00:33]} 31. axb4 {[%emt 0:00:41]} Ra8 {[%emt 0:00:18]} 32. Bc3 {[%emt 0:01:21]} Nb5 {[%emt 0:00:26]} 33. Ra1 {[%emt 0:00:33]} Rxa1 {[%emt 0:03:22]} 34. Bxa1 {[%emt 0:00:22]} Kc8 {[%emt 0:01:05]} 35. Bxg7 {[%emt 0:00:42]} Kb7 {[%emt 0:00:27]} 36. Be5 {[%emt 0:00:34]} Ka6 {[%emt 0:00:39]} 37. h4 {[%emt 0:00:53]} Na7 {[%emt 0:03:14]} 38. g4 {[%emt 0:00:31]} Nc8 {[%emt 0:00:41]} 39. h5 {[%emt 0:00:24]} fxg4 {[%emt 0:02:03]} 40. fxg4 {[%emt 0:00:00]} gxh5 41. gxh5 Ne7 42. h6 {[%emt 1:05:55]} Ng6 {[%emt 0:33:43]} 43. h7 {[%emt 0:00:30]} 1-0

[Event "3rd Sunway Formentera-A 2024"]
[Site "Formentera"]
[Date "2024.04.17"]
[Round "8.1"]
[White "Ivanchuk, Vasyl"]
[Black "Donchenko, Alexander"]
[Result "1/2-1/2"]
[ECO "B90"]
[WhiteElo "2611"]
[BlackElo "2633"]
[Annotator "TA"]
[PlyCount "108"]
[EventDate "2024.04.03"]
[EventType "swiss"]
[EventCountry "ESP"]
[SourceTitle "playchess.com"]
[Source "ChessBase"]
[SourceQuality "1"]
[TimeControl "40/5400+30:1800+30"]

{[%evp 14,108,10,0,12,7,10,22,2,0,16,0,1,0,0,0,0,0,3,0,30,0,3,0,0,0,52,0,0,0,0,0,0,0,0,0,45,46,90,81,103,108,110,113,116,110,109,110,111,72,100,75,159,109,116,79,82,0,0,4,26,22,42,0,0,0,0,0,0,0,0,0,0,0,0,0,0,0,0,0,0,0,0,0,0,0,0,0,0,0,0,0,0,0,0,0,0]} 1. e4 {[%emt 0:00:15]} c5 {[%emt 0:00:07]} 2. Nf3 {[%emt 0:00:07]} d6 {[%emt 0:00:07]} 3. d4 {[%emt 0:00:05]} cxd4 {[%emt 0:00:06]} 4. Nxd4 {[%emt 0:00:05]} Nf6 {[%emt 0:00:08]} 5. Nc3 {[%emt 0:00:03]} a6 {[%emt 0:00:06]} 6. a4 {[%emt 0:00:03]} e5 {[%emt 0:02:38]} 7. Nf3 {[%emt 0:00:10]} Be7 {[%emt 0:00:18]} 8. Bg5 {[%emt 0:00:08]} Be6 {[%emt 0:02:20]} 9. Bxf6 {[%emt 0:00:20]} Bxf6 {[%emt 0:00:07]} 10. Nd5 {[%emt 0:00:04] Against Qb6} Nd7 {[%emt 0:02:31]} 11. Bc4 {[%emt 0:00:13]} Rc8 {[%emt 0:02:36]} 12. Qe2 {[%emt 0:00:40]} Nb6 {[%emt 0:02:40]} (12... Bxd5 13. Bxd5 Qc7 14. c3 $14) 13. Nxf6+ {[%emt 0:00:33]} Qxf6 {[%emt 0:00:07]} 14. Bxe6 {[%emt 0:00:03]} Qxe6 {[%emt 0:00:19]} 15. O-O {[%emt 0:01:06]} O-O {[%emt 0:02:35]} 16. Rfd1 {[%emt 0:00:06]} Rc6 {[%emt 0:05:19]} 17. b3 {[%emt 0:10:36]} Nd7 {[%emt 0:06:41]} 18. Rd2 {[%emt 0:11:22]} Rfc8 {[%emt 0:06:21]} 19. Rad1 {[%emt 0:03:41]} Qe7 {[%emt 0:08:14]} ({Black should try} 19... Nc5 $11) 20. g3 {[%emt 0:09:33]} (20. Ne1 $1 $14) 20... Nc5 $11 {[%emt 0:09:33]} 21. Rd5 {[%emt 0:15:59]} b5 {[%emt 0:09:24]} 22. axb5 {[%emt 0:00:21]} axb5 {[%emt 0:00:04][%cal Ba6b5,Bb5b4][%mdl 32]} 23. h4 {[%emt 0:16:20]} h6 {[%emt 0:07:18]} 24. h5 {[%emt 0:07:02][%cal Od1d2]} Qf6 {[%emt 0:02:15]} 25. R1d2 {[%emt 0:03:14][%cal Of3h4]} b4 {[%emt 0:13:12]} 26. Nh4 {[%emt 0:03:38]} Ne6 {[%emt 0:00:24]} 27. Nf5 {[%emt 0:00:25] Inhibits Nd4.} (27. Rxd6 Nd4 28. R6xd4 exd4 $17) 27... Nd4 {[%emt 0:00:15]} 28. Nxd4 {[%emt 0:00:06]} exd4 {[%emt 0:00:04]} 29. Rb5 {[%emt 0:06:26]} (29. R5xd4 Rxc2 30. Rxd6 (30. Rxc2 Rxc2 31. Qxc2 Qxd4 $11) 30... Qxd6 31. Rxc2 Rc3 $18) 29... Rc3 {[%emt 0:05:14][%cal Od4d3]} 30. Rxb4 {[%emt 0:00:19]} d3 {[%emt 0:00:16]} 31. cxd3 {[%emt 0:01:43] Strongly threatening Rc4.} (31. Rxd3 {simplifies} Rxc2 32. Qf3 Qxf3 33. Rxf3 Kf8 34. Kg2) 31... Rc1+ {[%emt 0:00:05]} 32. Kh2 {[%emt 0:05:59] Rc4 is the strong threat.} Rb1 {[%emt 0:08:45]} ({Black should play} 32... Qa1) 33. Rc4 {[%emt 0:01:37]} (33. Rc2 $142 Rxc2 34. Qxc2) 33... Ra8 $16 {[%emt 0:01:03][%cal Oa8a1]} 34. Qg4 {[%emt 0:03:36]} Ra5 {[%emt 0:00:23][%cal Oa5g5]} 35. Ra4 {[%emt 0:01:19]} ({Better is} 35. d4 $16 Rg5 36. e5 Rxg4 37. Rc8+ (37. exf6 gxf6 38. Rc6 Rxb3 $14) 37... Kh7 38. exf6) 35... Rg5 $11 {[%emt 0:00:35]} 36. Qe2 {[%emt 0:00:21] Threatening f4.} Qe5 {[%emt 0:02:27]} (36... Rc5 {simplifies} 37. Rc2 Rxc2 38. Qxc2 Rb2) 37. Kg2 {[%emt 0:00:14] Hoping for b4.} Rxh5 {[%emt 0:00:18][%cal Ob1h1]} 38. Qf3 {[%emt 0:00:59] [#] Black must now prevent Ra8+.} g6 {[%emt 0:01:24][%cal Oh5h1] ...Rhh1! would now be deadly. The position is equal.} 39. Qg4 {[%emt 0:00:36]} Rhh1 {[%emt 0:02:45][%cal Og8g7]} 40. Ra8+ {[%emt 0:00:00]} Kg7 {[%emt 0:00:00]} 41. Qc8 $1 {[%emt 0:12:18][%csl Ga8][%cal Rc8h8]} Rhg1+ {[%emt 0:29:36]} 42. Kf3 {[%emt 0:00:24][%csl Ga8][%cal Rc8h8] [#]} Qh5+ {[%emt 0:00:34]} (42... Rxb3 43. Qh8#) 43. Kf4 $1 {[%emt 0:01:09][%csl Ga8][%cal Rc8h8]} Qe5+ {[%emt 0:00:42]} (43... Rxb3 44. Qh8#) (43... g5+ 44. Ke3 Rbe1+ 45. Kd4 $18) 44. Kf3 {[%emt 0:02:20][%csl Ga8][%cal Rc8h8]} Qh5+ {[%emt 0:00:51]} (44... Rxb3 45. Qh8#) 45. Kf4 $1 {[%emt 0:00:13][%csl Ga8][%cal Rc8h8]} Qg5+ {[%emt 0:00:03]} (45... Rxb3 46. Qh8#) (45... g5+ $2 46. Ke3 Rge1+ 47. Kd4 $18) 46. Kf3 {[%emt 0:00:07][%csl Ga8][%cal Rc8h8] Chess con chili.} Qf6+ {[%emt 0:00:53]} (46... Qxd2 47. Qh8#) 47. Ke3 {[%emt 0:00:20][%csl Ga8][%cal Rc8h8]} Qg5+ {[%emt 0:01:06]} (47... Rxb3 48. Qh8#) 48. Kf3 {[%emt 0:10:00][%csl Ga8][%cal Rc8h8]} Qf6+ {[%emt 0:00:28]} (48... Qxd2 49. Qh8#) 49. Ke3 {[%emt 0:00:16][%csl Ga8][%cal Rc8h8]} Rge1+ {[%emt 0:00:23]} (49... Rxb3 50. Qh8#) 50. Re2 {[%emt 0:00:06]} Rxe2+ {[%emt 0:00:14]} (50... Qg5+ 51. f4 Qc5+ (51... Qxg3+ 52. Kd4 $16) 52. Qxc5 dxc5 53. Rxe1 Rxe1+ 54. Kf3 $16) 51. Kxe2 {[%emt 0:00:05][%csl Ga8][%cal Rc8g8]} Rb2+ {[%emt 0:00:05]} ({Worse is} 51... Rxb3 52. Qh8#) 52. Kd1 {[%emt 0:00:16][%csl Ga8][%cal Rc8h8]} Rb1+ {[%emt 0:00:07]} ({Don't blunder} 52... Qf3+ $2 53. Kc1 Kf6 54. Qh8+ (54. Kxb2 Qxf2+ 55. Ka3 Kg5 $18) 54... Kg5 55. Qxb2 $18) 53. Ke2 {[%emt 0:00:08][%csl Ga8][%cal Rc8g8]} Rb2+ {[%emt 0:00:05]} (53... Rxb3 54. Qh8#) 54. Kd1 {[%emt 0:00:05][%csl Ga8][%cal Rc8g8]} Rb1+ {[%emt 0:00:03] Weighted Error Value: White=0.09 (flawless) /Black=0.07 (flawless) .  Mistake:       	White=3     	Black=2      Inaccurate:     	White=4     	Black=3      OK:         	White=17    	Black=12     Best:        	White=8     	Black=9      Strong:       	White=3     	---} ({Not} 54... Qf3+ $2 55. Kc1 $18) 1/2-1/2

[Event "3rd Sunway Formentera-A 2024"]
[Site "Formentera"]
[Date "2024.04.17"]
[Round "8.2"]
[White "Pranav, V."]
[Black "Xiao, Tong(Qd)"]
[Result "1/2-1/2"]
[ECO "B41"]
[WhiteElo "2604"]
[BlackElo "2484"]
[Annotator "TA"]
[PlyCount "38"]
[EventDate "2024.04.03"]
[EventType "swiss"]
[EventCountry "ESP"]
[SourceTitle "playchess.com"]
[Source "ChessBase"]
[SourceQuality "1"]
[TimeControl "40/5400+30:1800+30"]

{[%evp 11,38,30,32,28,29,-19,0,-13,-19,-54,-45,-74,-72,-97,-103,-88,-88,-84,-90,-82,-55,-54,-35,-28,-15,-18,-7,-12,-9]} 1. e4 {[%emt 0:00:03]} c5 {[%emt 0:00:20]} 2. Nf3 {[%emt 0:00:11]} e6 {[%emt 0:00:09]} 3. d4 {[%emt 0:01:47]} cxd4 {[%emt 0:00:05]} 4. Nxd4 {[%emt 0:00:09]} a6 {[%emt 0:00:06]} 5. c4 {[%emt 0:03:30]} Nf6 {[%emt 0:01:53]} 6. Nc3 {[%emt 0:01:03]} Bb4 {[%emt 0:00:07]} 7. Qd3 {[%emt 0:00:37]} d5 {[%emt 0:00:16]} 8. Nc2 {[%emt 0:04:47]} (8. exd5 $142 exd5 9. Be2) 8... Bxc3+ $11 {[%emt 0:04:04]} 9. Qxc3 {[%emt 0:02:28]} O-O {[%emt 0:01:02]} 10. f3 {[%emt 0:06:41]} dxe4 {[%emt 0:09:27]} 11. Bg5 {[%emt 0:00:43]} Nbd7 {[%emt 0:01:15][%cal Ob7b5]} 12. O-O-O {[%emt 0:14:53]} Qc7 {[%emt 0:00:28]} 13. Be2 {[%emt 0:04:50]} b6 {[%emt 0:10:43]} 14. Ne3 {[%emt 0:05:33]} Bb7 {[%emt 0:05:31]} 15. f4 {[%emt 0:07:38] [#]} b5 $1 {[%emt 0:09:33]} 16. f5 {[%emt 0:08:01]} Rac8 {[%emt 0:09:26][%cal Of6d5]} 17. Kb1 {[%emt 0:14:32]} Qb6 {[%emt 0:04:15]} 18. fxe6 {[%emt 0:03:56]} fxe6 {[%emt 0:01:07]} 19. Qd4 {[%emt 0:04:10]} Qxd4 {[%emt 0:05:41] Weighted Error Value: White=0.11 (very precise) /Black=0.06 (flawless) .  Mistake:       	White=1     	---        Inaccurate:     	White=2     	Black=1      OK:         	White=3     	Black=5      Best:        	---       	Black=1} 1/2-1/2

[Event "3rd Sunway Formentera-A 2024"]
[Site "Formentera"]
[Date "2024.04.17"]
[Round "8.3"]
[White "Baklan, Vladimir"]
[Black "Mohamed Anees M"]
[Result "1-0"]
[ECO "B56"]
[WhiteElo "2531"]
[BlackElo "2253"]
[Annotator "TA RC"]
[PlyCount "155"]
[EventDate "2024.04.03"]
[EventType "swiss"]
[EventCountry "ESP"]
[SourceTitle "playchess.com"]
[Source "ChessBase"]
[SourceQuality "1"]
[TimeControl "40/5400+30:1800+30"]

{[%evp 20,155,38,20,22,18,20,14,45,37,43,33,32,29,31,34,28,23,31,38,44,41,62,61,64,64,61,61,68,63,75,80,72,72,91,77,79,77,100,100,114,91,91,91,91,91,91,91,91,91,141,103,106,91,91,91,68,68,68,0,69,0,91,91,116,91,118,91,99,91,106,95,92,87,77,70,89,88,93,12,97,109,122,131,117,130,124,116,175,176,398,169,385,380,386,379,368,308,294,299,294,287,283,276,258,179,245,241,339,407,410,395,398,364,457,437,381,366,650,643,642,612,609,603,590,584,570,535,29974,29975,29969,29971,29985,29986,29992,29991,29997,29997]} 1. e4 {[%emt 0:00:03]} c5 {[%emt 0:00:42]} 2. Nf3 {[%emt 0:00:05]} Nc6 {[%emt 0:00:04]} 3. d4 {[%emt 0:00:05]} cxd4 {[%emt 0:00:04]} 4. Nxd4 {[%emt 0:00:02]} Nf6 {[%emt 0:00:07]} 5. Nc3 {[%emt 0:00:05]} d6 {[%emt 0:00:04]} 6. f3 {[%emt 0:00:06]} e5 {[%emt 0:00:18]} 7. Nb3 {[%emt 0:00:05]} Be7 {[%emt 0:00:10]} 8. Be3 {[%emt 0:00:08]} O-O {[%emt 0:01:00]} 9. Qd2 {[%emt 0:00:35]} a5 {[%emt 0:02:22]} 10. Bb5 {[%emt 0:00:15]} Be6 {[%emt 0:00:07]} 11. Rd1 {[%emt 0:04:08]} Na7 {[%emt 0:06:46][%cal Bc6a7,Ba7c8,Bc8b6,Bb6c4][%mdl 32]} 12. Bd3 {[%emt 0:00:26]} Nc8 {[%emt 0:12:52]} 13. O-O {[%emt 0:01:35]} a4 {[%emt 0:01:40] The position is equal.} 14. Nc1 {[%emt 0:00:12]} Nb6 {[%emt 0:01:26]} 15. Qf2 {[%emt 0:06:01]} Nc4 {[%emt 0:01:57]} 16. Bxc4 {[%emt 0:00:50]} Bxc4 {[%emt 0:00:09]} 17. Rfe1 {[%emt 0:10:56]} Qc8 {[%emt 0:17:57]} 18. a3 {[%emt 0:04:56]} Qe6 {[%emt 0:01:02]} 19. Nd3 {[%emt 0:18:31]} Rfd8 {[%emt 0:17:55]} (19... d5 20. exd5 Nxd5 21. Nxd5 Bxd5 22. Bc5 $16) 20. Bg5 {[%emt 0:16:47]} Ng4 {[%emt 0:05:38]} 21. Qd2 {[%emt 0:03:16] [#] Bxe7 is the strong threat.} Bxg5 {[%emt 0:01:20]} 22. Qxg5 {[%emt 0:00:04]} Nf6 {[%emt 0:00:04]} 23. Nb4 {[%emt 0:00:24]} Qc8 {[%emt 0:01:50]} 24. Rd2 {[%emt 0:03:43] White is more active.} (24. Qe3 {simplifies} Qc7 25. Rd2 Rd7 26. g4) 24... Qc5+ {[%emt 0:03:43]} 25. Qe3 {[%emt 0:00:28]} Qxe3+ {[%emt 0:02:14]} 26. Rxe3 {[%emt 0:00:06]} Ra5 {[%emt 0:00:09]} 27. Re1 {[%emt 0:01:46]} Kf8 {[%emt 0:00:34]} 28. g4 {[%emt 0:06:40]} h6 {[%emt 0:02:07]} 29. h4 {[%emt 0:00:22]} g5 {[%emt 0:00:54]} 30. hxg5 {[%emt 0:02:44]} hxg5 {[%emt 0:00:05]} 31. Nd1 {[%emt 0:00:08]} Be6 {[%emt 0:00:37]} 32. Ne3 {[%emt 0:00:11]} Ke7 {[%emt 0:02:10]} 33. Red1 {[%emt 0:00:31][%cal Be1d1,Bd1h1,Bh1h6][%mdl 32]} Rb5 {[%emt 0:01:07]} 34. Kf2 {[%emt 0:00:21]} Rb6 {[%emt 0:00:59]} (34... Rc5 $142) 35. Rh1 {[%emt 0:00:44]} Rb5 {[%emt 0:00:52][%cal Bb6b5,Bb5c5,Bc5c8][%mdl 32]} 36. Rh6 {[%emt 0:06:17]} Rc5 {[%emt 0:02:22]} 37. Ke1 {[%emt 0:00:49]} Rcc8 {[%emt 0:01:12]} 38. Rdh2 {[%emt 0:00:30]} Rc5 {[%emt 0:00:48]} 39. Rd2 {[%emt 0:07:43]} Rcc8 $1 {[%emt 0:00:33]} 40. Kf2 {[%emt 0:00:00][%cal Be1f2,Bf2g3,Bg3g2][%mdl 32]} Rc5 {[%emt 0:00:00]} 41. Kg3 {[%emt 0:03:18]} Rcc8 {[%emt 0:04:43]} 42. Rh1 {[%emt 0:00:09]} Rc5 {[%emt 0:01:18]} 43. Rhd1 {[%emt 0:00:15]} Rb5 {[%emt 0:00:46]} 44. Rd3 {[%emt 0:02:29]} Rc5 {[%emt 0:01:21]} 45. Kg2 {[%emt 0:02:44]} Rcc8 {[%emt 0:00:36]} 46. R3d2 {[%emt 0:00:36]} Rc5 {[%emt 0:01:26]} 47. Nd3 {[%emt 0:00:14] Excellent horsemanship.} Rcc8 {[%emt 0:00:24]} 48. Nf2 {[%emt 0:00:16]} Rd7 {[%emt 0:09:38]} 49. Nh1 {[%emt 0:09:26]} ({White should play} 49. Nh3 $16) 49... b5 {[%emt 0:02:28]} (49... Rc5 $11 {keeps the balance.}) 50. Ng3 $36 {[%emt 0:00:07][%mdl 2048] White is really pushing. Black is on the road to losing.} Rc6 {[%emt 0:05:17]} 51. Ngf5+ {[%emt 0:07:10]} Bxf5 {[%emt 0:00:26]} 52. Nxf5+ {[%emt 0:00:04]} (52. exf5 $6 Rd8 $11) 52... Ke6 {[%emt 0:01:15]} 53. Rh1 {[%emt 0:01:24]} d5 {[%emt 0:05:22]} (53... Ng8 $16) 54. Rh6 $18 {[%emt 0:00:46]} dxe4 {[%emt 0:07:55] [#]} (54... d4 55. Kg3 Rd8) 55. Rxf6+ $1 {[%emt 0:00:20][%mdl 512]} Kxf6 {[%emt 0:00:04]} 56. Rxd7 {[%emt 0:00:04] Hoping for Rd6+.} Rxc2+ {[%emt 0:00:04][%mdl 4096] Endgame. KRN-KR} 57. Kg3 {[%emt 0:01:14][%cal Rd7d6]} Kg6 {[%emt 0:00:05]} 58. fxe4 {[%emt 0:05:07]} Rxb2 {[%emt 0:00:33]} 59. Rd5 {[%emt 0:00:15]} Rb3+ {[%emt 0:05:26]} 60. Kf2 {[%emt 0:00:08]} b4 {[%emt 0:00:43]} 61. Rd6+ {[%emt 0:04:51]} (61. Rxe5 Rxa3 62. Re8 b3 $11) 61... Kh7 {[%emt 0:00:05]} 62. Rh6+ {[%emt 0:00:34]} Kg8 {[%emt 0:00:04]} 63. axb4 {[%emt 0:00:03]} a3 {[%emt 0:00:36]} (63... Rxb4 {was called for.} 64. Ke3 Rb3+ 65. Ke2 a3) 64. Ra6 {[%emt 0:00:14]} Rxb4 {[%emt 0:00:09]} 65. Ke3 {[%emt 0:01:36]} ({Not} 65. Rxa3 Rxe4 66. Ra7 Rf4+ 67. Kg3 e4 $18) 65... Rb3+ {[%emt 0:00:13]} 66. Kd2 {[%emt 0:00:08]} Rf3 {[%emt 0:00:36]} 67. Ne3 {[%emt 0:01:54]} Rf2+ {[%emt 0:00:37]} 68. Kd3 {[%emt 0:02:41]} a2 $2 {[%emt 0:00:05]} (68... Rf4 69. Rxa3 Kg7) 69. Nf5 {[%emt 0:00:56]} Kh7 {[%emt 0:00:31]} 70. Kc4 {[%emt 0:00:12]} Rd2 {[%emt 0:00:21]} 71. Kc5 {[%emt 0:00:29]} Kg8 {[%emt 0:00:38]} 72. Ra7 {[%emt 0:00:20]} Kh8 {[%emt 0:01:43]} 73. Nd6 {[%emt 0:01:13]} (73. Rxf7 {leads to mate.} a1=Q (73... a1=B 74. Kc6 $16) 74. Rf8+ Kh7 75. Rf7+ Kg6 76. Rg7+ Kf6) 73... f6 {[%emt 0:00:16]} 74. Kc6 {[%emt 0:00:42] White mates.} Rh2 {[%emt 0:00:23]} 75. Kd5 {[%emt 0:00:37]} Rg2 {[%emt 0:01:49]} 76. Ke6 {[%emt 0:00:20]} Rxg4 {[%emt 0:00:07]} 77. Kxf6 {[%emt 0:00:02]} Rg2 {[%emt 0:00:30]} 78. Kg6 {[%emt 0:00:30] Weighted Error Value: White=0.12 (very precise) /Black=0.16 (very precise) .  Mistake:       	White=1     	Black=6      Inaccurate:     	---       	Black=4      OK:         	White=26    	Black=17     Best:        	White=7     	Black=8      Strong:       	---       	Black=1      Brilliant:      	White=1     	---} 1-0